Cogmind - Beta 14 @@@ ROGUE MODE // 2025.03.28 @ 21:20:36 Player: mix Result: Destroyed by VK-TCW(R) with Subdweller Beam Cannon Performance ------------- Evolutions (0) 0 Regions Visited (2) 400 Robots Destroyed (23) 115 Value Destroyed (516) 516 Prototype IDs (11) 220 Alien Tech Used (0) 0 Bonus (0) 0 TOTAL SCORE: 1251 Bonus ------- None Cogmind --------- Core Integrity 0/250 Matter 260/300 Energy 64/100 System Corruption 2% Temperature Cool (9) Movement Core (550) Ox10 Location -10/Subcaves Parts ------- > --- POWER (1) -------- (None) > --- PROPULSION (2) --- (None) > --- UTILITY (2) ------ Large Storage Unit Terrain Scanner > --- WEAPON (2) ------- Subdweller Laser Subdweller Beam Cannon > --- INVENTORY (15) --- Light Nuclear Core Heat Sink Improved Heat Sink Large Storage Unit Scrap Shield Scrap Shield Fragment (47) Scrap Shield Fragment (46) Scrap Shield Fragment (46) Scrap Shield Fragment (43) Peak State ------------ > --- POWER ------------ Ion Engine > --- PROPULSION ------- Light Treads Light Treads > --- UTILITY ---------- Large Storage Unit Terrain Scanner > --- WEAPON ----------- Riot Gun Subdweller Beam Cannon > --- INVENTORY -------- Light Nuclear Core Heat Sink Improved Heat Sink Large Storage Unit Scrap Shield Grenade Launcher [Rating: 11] Favorites ----------- Power Ion Engine Engine Ion Engine Propulsion Light Treads Treads Light Treads Utility Large Storage Unit Device Terrain Scanner Storage Large Storage Unit Weapon Small Laser Energy Gun Small Laser Energy Cannon Subdweller Beam Cannon Ballistic Gun Assault Rifle Launcher Grenade Launcher Build | -11 -10 -10 ------- Run | Yrd Mat Sub Slots Evolved . | . . . Power . | . . . Propulsion . | . . . Utility . | . . . Weapon . | . . . Parts Attached 18 | 6 6 6 Power 3 | 1 2 . Engine 3 | 1 2 . Core . | . . . Reactor . | . . . Propulsion 2 | 2 . . Treads 2 | 2 . . Leg . | . . . Wheel . | . . . Hover . | . . . Flight . | . . . Utility 4 | 1 3 . Device 2 | . 2 . Storage 2 | 1 1 . Processor . | . . . Hackware . | . . . Protection . | . . . Artifact . | . . . Weapon 9 | 2 1 6 Energy Gun 3 | . 1 2 Energy Cannon 2 | . . 2 Ballistic Gun 2 | 2 . . Ballistic Cannon . | . . . Launcher 2 | . . 2 Special Weapon . | . . . Impact Weapon . | . . . Slashing Weapon . | . . . Piercing Weapon . | . . . Special Melee Weapon . | . . . Unidentified Prototypes . | . . . Parts Lost 8 | . 2 6 Power 2 | . 1 1 Propulsion 2 | . . 2 Utility . | . . . Weapon 4 | . 1 3 Highest Loss Streak 4 | . 1 4 To Critical Strikes . | . . . Average Slot Usage (%) 89 | . 90 89 Engine 13 | . 14 13 Treads 25 | . 28 20 Device 12 | . 11 14 Storage 14 | . 14 14 Energy Gun 13 | . 13 13 Energy Cannon 2 | . . 6 Ballistic Gun 5 | . 7 . Launcher 1 | . . 5 Peak Build Rating 11 | 6 7 11 Average Rating 7 | 4 6 9 On Entrance 4 | . 6 6 Naked Turns . | . . . Heaviest Build 37 | 13 29 37 Greatest Support 40 | 40 40 40 Greatest Overweight (x) 8 | . . 8 Average Overweight (x) . | . . . Largest Inventory Capacity 15 | 8 15 15 Average Capacity 14 | 7 14 15 Most Carried 12 | 5 5 12 Average Carried 4 | . 3 8 Final Capacity 15 | 8 15 15 Final Carried 10 | . 5 10 Class Distribution -------------------- 100% | Mutant Dominant Class ---------------- Mutant | -10/Materials Mutant | -10/Subcaves Resources | -11 -10 -10 ----------- Run | Yrd Mat Sub Matter Collected 534 | 260 193 81 Remotely . | . . . Salvage Created 629 | . 469 160 Parts 52 | . 39 13 Haulers Intercepted . | . . . Recyclers Shooed . | . . . Parts Field Recycled . | . . . Retrieved Matter . | . . . Parts Self-Destructed 3 | . . 3 Prevented . | . . . Kills | -11 -10 -10 ------- Run | Yrd Mat Sub Combat Hostiles Destroyed 19 | . 13 6 Guns 13 | . 13 . Cannons 2 | . . 2 AOE 4 | . . 4 Classes Destroyed 5 | . 4 1 Builder 2 | . 2 . Watcher 2 | . 2 . Swarmer 9 | . 6 3 Grunt 7 | . 7 . Subdweller 3 | . . 3 Best Kill Streak 3 | . 3 3 Combat Bots Only 3 | . 3 3 Max Kills in Single Turn 2 | . 1 2 Gunslinging . | . . . Exploded 2 | . . 2 Melee . | . . . Uniques/NPCs Destroyed . | . . . Combat | -11 -10 -10 -------- Run | Yrd Mat Sub Hostile Shots Fired 87 | . 64 23 Missed 22 | . 17 5 Damage Taken 1015 | . 514 501 Core 270 | . 75 195 Absorbed by Shields . | . . . Core Remaining (%) 100 | 100 . . Volleys Fired 68 | . 55 13 Largest 2 | . 2 2 Hottest 130 | . 60 130 Shots Fired 118 | . 95 23 Gun 105 | . 95 10 Cannon 6 | . . 6 Launcher 7 | . . 7 Special . | . . . Kinetic 46 | . 46 . Thermal 55 | . 49 6 Explosive 7 | . . 7 Electromagnetic 10 | . . 10 Robot Hit Streak 19 | . 10 19 Robot Miss Streak 6 | . 6 2 Penetration Max . | . . . Secondary Targets 1 | . 1 . Max Gunslinging Chain 1 | . 1 . Shots Hit Robots 71 | . 54 17 Core Hits 41 | . 28 13 Critical Kills . | . . . Critical Parts Destroyed . | . . . Critical Strikes . | . . . Melee Attacks . | . . . Impact . | . . . Slashing . | . . . Piercing . | . . . Sneak Attacks . | . . . Combat Hostiles . | . . . Follow-up Attacks . | . . . Damage Inflicted 1405 | . 635 770 Guns 805 | . 635 170 Cannons 169 | . . 169 Explosions 431 | . . 431 Melee . | . . . Ramming . | . . . Kinetic 299 | . 299 . Thermal 505 | . 336 169 Explosive 431 | . . 431 Electromagnetic 170 | . . 170 Impact . | . . . Slashing . | . . . Piercing . | . . . Highest Corruption 2 | . 2 2 Average Corruption 2 | . 2 2 Corruption Purged . | . . . Corruption Blocked . | . . . Effects 22 | . 13 9 Message Errors 5 | . 5 . Matter Fused 5 | . 3 2 Heat Flow Errors 2 | . 1 1 Energy Discharges 4 | . 4 . Data Loss (minor) 4 | . . 4 Misfires 1 | . . 1 Alerts 1 | . . 1 Overload Shots . | . . . Overflow Damage 4 | . . 4 Projectiles . | . . . Explosions 4 | . . 4 Melee . | . . . Knockbacks . | . . . Impact . | . . . Kinetic . | . . . Secondary . | . . . Self-Inflicted Damage 18 | . . 18 Shots 2 | . . 2 Rammed . | . . . Targets Rammed . | . . . Kicked . | . . . Crushed . | . . . Highest Temperature 165 | . 152 165 Average Temperature 28 | . 25 39 Received Heat Transfer 333 | . 219 114 Siege Activations . | . . . Robots Corrupted . | . . . Combat Hostiles . | . . . Parts Fried . | . . . Impact Corruptions . | . . . Robots Melted . | . . . Combat Hostiles . | . . . Parts Melted 2 | . 1 1 Heat Transferred 997 | . 775 222 Parts Sabotaged . | . . . Parts Stolen . | . . . Parts Stripped . | . . . Power Chain Reactions . | . . . Alert | -11 -10 -10 ------- Run | Yrd Mat Sub Peak Influence 270 | . 270 . Initial . | . . . Average 125 | . 131 . Maximum Alert Level 1 | . 1 . Low Security (%) 73 | 100 72 . Level 1 26 | . 27 . Level 2 . | . . . Level 3 . | . . . Level 4 . | . . . Level 5 . | . . . High Security . | . . . Max Security . | . . . Squads Dispatched 1 | . 1 . Investigation . | . . . Extermination . | . . . Reinforcement 1 | . 1 . Assault . | . . . Garrison . | . . . Intercept . | . . . Searches Triggered . | . . . Construction Impeded . | . . . Haulers Reinforced . | . . . Active Scanning Responses . | . . . Cargo Convoy Interrupts . | . . . Stealth | -11 -10 -10 --------- Run | Yrd Mat Sub Distress Signals 2 | . 2 . Communications Jammed . | . . . Distress Signals . | . . . Times Spotted 30 | . 23 7 Peak Tracking Total 5 | . 5 2 Tactical Retreats 1 | . 1 . Traps | -11 -10 -10 ------- Run | Yrd Mat Sub Traps Triggered 1 | . 1 . Indirectly . | . . . Trap Hack Attempts . | . . . Triggered . | . . . Disarmed . | . . . Reprogrammed . | . . . Reused . | . . . Traps Extracted . | . . . Installed . | . . . Triggered . | . . . Machines | -11 -10 -10 ---------- Run | Yrd Mat Sub Machines Disabled 2 | . . 2 Max in Single Turn 2 | . . 2 Machines Repaired . | . . . Machines Dismantled . | . . . Machines Sabotaged . | . . . Overloaded Fab Kills . | . . . Hacking | -11 -10 -10 --------- Run | Yrd Mat Sub Machines Accessed 2 | . 1 1 Terminals 1 | . 1 . Fabricators . | . . . Repair Stations . | . . . Recycling Units . | . . . Scanalyzers . | . . . Garrison Access . | . . . Total Hacks 12 | . 3 9 Successful 9 | . . 9 Failed 3 | . 3 . Catastrophic . | . . . Database Lockouts . | . . . Manual 3 | . 3 . Terminals 3 | . 3 . Fabricators . | . . . Repair Stations . | . . . Recycling Units . | . . . Scanalyzers . | . . . Garrison Access . | . . . Terminal Hacks 9 | . . 9 Record 8 | . . 8 Derelict Proto ID Bank 1 | . . 1 Fabricator Hacks . | . . . Repair Station Hacks . | . . . Recycling Unit Hacks . | . . . Scanalyzer . | . . . Garrison Access Hacks . | . . . Unauthorized Hacks . | . . . Terminals . | . . . Fabricators . | . . . Repair Stations . | . . . Recycling Units . | . . . Scanalyzers . | . . . Garrison Access . | . . . Data Cores Recovered . | . . . Used . | . . . Hacking Detections 1 | . 1 . Full Trace Events . | . . . Feedback Events . | . . . Feedback Blocked . | . . . Robot Schematics Acquired . | . . . Robots Built . | . . . Authchips . | . . . Time . | . . . Total Robot Build Rating . | . . . Part Schematics Acquired . | . . . Parts Built . | . . . Authchips . | . . . Time . | . . . Total Part Build Rating . | . . . Parts Repaired . | . . . Time . | . . . Parts Recycled . | . . . Recycled Matter . | . . . Retrieved Matter . | . . . Retrieved Components . | . . . Parts Scanalyzed . | . . . Part Schematics Acquired . | . . . Parts Damaged . | . . . Bothacking | -11 -10 -10 ------------ Run | Yrd Mat Sub Used RIF Installer . | . . . Robots Hacked . | . . . Non-combat . | . . . Combat . | . . . Robot Hacks Applied . | . . . Relay Couplers Released . | . . . Fabnet Peak Effective % . | . . . Robots Rewired . | . . . Allies Hacked . | . . . Hacks Repelled . | . . . Allies | -11 -10 -10 -------- Run | Yrd Mat Sub Total Allies . | . . . Largest Group . | . . . Highest-Rated Group . | . . . Highest-Rated Ally . | . . . Total Orders . | . . . Ally Attacks . | . . . Total Damage . | . . . Kills . | . . . Allies Corrupted . | . . . Allies Melted . | . . . Intel | -11 -10 -10 ------- Run | Yrd Mat Sub Robot Analysis Total . | . . . Derelict Logs Recovered . | . . . Drone Launches . | . . . Drone Recoveries . | . . . Exploration | -11 -10 -10 ------------- Run | Yrd Mat Sub Turns Passed 1942 | 65 1265 612 Spaces Moved 677 | 44 358 275 Core 16 | 15 . 1 Treads 661 | 29 358 274 Legs . | . . . Wheels . | . . . Hover . | . . . Flight . | . . . Fastest Speed 50 | 50 160 160 Average Speed 170 | 122 160 191 Slowest Speed 450 | 160 160 450 Overloaded Moves . | . . . Propulsion Burnouts . | . . . Robots Hopped . | . . . Cave-ins Triggered . | . . . Exploration Rate (%) 31 | 4 72 17 Regions Visited 2 Branch Regions 1 Pre-discovered Areas . | . . . Known Exits Taken . | . . . Unknown Exits Taken 2 | 1 1 . Scrap Searched 5 | . . 5 Spaces Dug . | . . . Terrain Destroyed 19 | . . 19 Melee . | . . . Projectile . | . . . AOE 19 | . . 19 Terrain Rammed . | . . . Walls Destroyed . | . . . Machines Disabled . | . . . Actions | -11 -10 -10 --------- Run | Yrd Mat Sub Total 1351 | 55 957 339 Wait 560 | . 524 36 Move 675 | 43 357 275 Hop . | . . . Pick Up 25 | 6 11 8 Fast Attach . | . . . Attach 13 | 6 3 4 Detach . | . . . Swap 5 | . 3 2 Drop 4 | . 4 . Fire 68 | . 55 13 Melee . | . . . Ram . | . . . Kick . | . . . Crush . | . . . Escape Stasis . | . . . Rewire 1 | . . 1 Trap . | . . . Miscellaneous . | . . . Route ------- -11/Scrapyard -10/Materials (discovered 4 exits: [*Mat x2] / [*Min] / *Sub) -10/Subcaves (discovered 1 exit: [*Mat]) History --------- Turn | Location | Event 26 | -11/Scrapyard | Discovered new exit (range 15) 66 | -11/Scrapyard | Entered Materials 244 | -10/Materials | Discovered new exit (range 13) 322 | -10/Materials | Build established: Mutant 608 | -10/Materials | Discovered new exit (range 10) 723 | -10/Materials | Discovered new exit (range 14) 1304 | -10/Materials | Discovered new exit (range 5) 1331 | -10/Materials | Entered Subcaves 1642 | -10/Subcaves | Visited 4L-MR0's lab 1933 | -10/Subcaves | Core integrity fell below 50% 1935 | -10/Subcaves | Core integrity fell below 20% 1937 | -10/Subcaves | Discovered new exit (range 13) 1943 | -10/Subcaves | Destroyed by VK-TCW(R) with Subdweller Beam Cannon Last Messages --------------- me then and there. >>Record "Procsplitter" This one said they'd fill my processors with garbage if I didn't build exactly what they want. Acquired Scrap Shield Fragment. Subatomizers dissect the Disposable Heat Sink. Acquired Scrap Shield Fragment. System corrupted: FCS attempts to trigger Riot Gun. System corrupted: Riot Gun misfires. M0-7BM(u) tweaks Twisted Machinery. Lgt. Treads destroyed. System corrupted: Component data lost. Ion Engine destroyed. EXIT=FOUND Grenade Launcher destroyed. PK-7BS(R) affixes Scrap Shield Fragment to Scrap Shield. Riot Gun destroyed. Map ----- +----------------------------------------------------+ | ?????????????????????????????????????????????????? | | ?????????????????????????????????????????????????? | | ?????????????????????????????????????????????????? | | ?????????????????????????????????????????????????? | | ?????????????????????????????????????????????????? | | ?????????????????????????????????????????????????? | | ?????????????????????????????????????????????????? | | ?????????????????????????????????????????????????? | | ?????????????????????????????????????????????????? | | ?????????????????????????????????????????????????? | | ???????????????????????? ????????????????????????? | | ???????????????????????? ????????????????????????? | | ??????????????????????## ??????##????????????????? | | ????????????????#????## ?????# #???????????????? | | ?????????????? #???# ?#??# ???????????????? | | ?????????????? #??# #### ????????????????? | | ????????????? ### ?????????????????? | | ????????????? # ?????????????????? | | ???????????? ??????????????????? | | ???????????? ???????????????????? | | ???????????? ! #???????????????????? | | ?????????????< R R ###?????????????????? | | ??????????????? #?###?????????????? | | ??????????????????# ## ##????????????? | | ???????????????????# ## #????????????? | | ?????????????????????## @ ; #????????????? | | ??????????????????????# #?????????????? | | ??????????????????????# u "##?????????????? | | ??????????????????????# ##??????????????? | | ??????????????????????# ; ##??????????????? | | ??????????????????????#######; #?#????????????? | | ??????????????????#?????????# ##??#??????????? | | ????????????????????????????# ##????????????? | | ????????????????????????????# #????#???????? | | ?????????????????????????#??### #?#??????????? | | ??????????????????????????????# #????????????? | | ????????????????????#?????????## ##????#???#???? | | ???????????????????????????????# #?#???????????? | | ???????????????????????????????# #???????#?????? | | ???????????????????????????????# #????#????????? | | ???????????????????????#???????# ##???#?????????? | | ??????????????????????????????## #???????#??????? | | ?????????????????????????????## #??????????????? | | ??????????????????????????????# ##?????#???????? | | ?????????????????????????#????## #?????????????? | | ???????????????????????????????# ##?#???????????? | | ??????????????????????#?????#?## #?#????????????? | | ???????????????????????????#??# ###????????????? | | ??????????????#?????#??#??????## #?????????????? | | ??#?#?????????????????#???#??## #?????????????? | +----------------------------------------------------+ Best States ------------- Heat Dissipation 35 Energy Generation 10 Energy Capacity 250 Matter Stores 300 Matter Capacity 300 Sight Range 16 Terrain Scan Range 14 Terrain Scan Density 10 Evasion (%) 50 Recoil Reduction 2 Item Schematics ----------------- None Robot Schematics ------------------ None Fabricated ------------ Nothing Alien Tech Used ----------------- None Achievements -------------- None Challenges ------------ None Game ------ Seed FortressLobotomyVibroblade Manual? 0 Play Time 00:10:44 Cumulative 70.9 hours Start 2025.03.28 @ 21:10:31 End 2025.03.28 @ 21:20:36 Sessions 1 Manual Loads 0 Difficulty Rogue Special Mode None Game No. 106 Rogue 92 Adventurer 14 Explorer 0 Win Type - Total 0 Types 0/0/0/0/0/0/0/0/0 Lore% 26 Gallery% 45 Achievement% 41 Wizard Run 0 Options --------- Layout 1 ASCII 0 Keyboard 0 Movement Mouse Keybinds 0 Fullscreen 1 Font 24/Smallcaps Map View 50x35 Zoom Use 0% Tactical HUD 0 Map Filters NONE Filters NONE Steam 1 RUN: 6cfdc563-66e9-45f3-af55-ae241c299584